[Event "Prague Open 2024"]
[Site "Prague"]
[Date "2024.01.10"]
[Round "7.6"]
[White "Poetsch, Hagen"]
[Black "Golis, Wiktor"]
[Result "1-0"]
[ECO "B12"]
[WhiteElo "2471"]
[BlackElo "2123"]
[Annotator "TA"]
[PlyCount "83"]
[EventDate "2024.01.02"]
[EventType "swiss"]
[EventCountry "CZE"]
[SourceTitle "playchess.com"]
[Source "ChessBase"]
[SourceQuality "1"]
[TimeControl "40/5400+30:1800+30"]

{[%evp 10,83,15,14,25,23,35,35,35,35,36,31,39,29,59,25,50,41,48,41,52,41,86,24,147,151,158,160,216,198,319,322,308,271,315,299,289,279,307,316,317,323,346,344,435,428,441,409,408,369,543,0,379,0,548,532,539,525,552,387,468,452,757,767,719,697,5273,5273,29993,29988,29987,29987,29987,29988,29988,29989]} 1. e4 {[%emt 0:00:48][%cal Be2e4,Be4e5][%mdl 32]} c6 {[%emt 0:00:25]} 2. d4 {[%emt 0:02:58]} d5 {[%emt 0:00:14]} 3. e5 {[%emt 0:00:10]} Bf5 {[%emt 0:00:17]} 4. Nd2 {[%emt 0:00:37]} e6 {[%emt 0:00:41]} 5. Nb3 {[%emt 0:00:06]} Nd7 {[%emt 0:01:06]} 6. Nf3 {[%emt 0:00:06]} h6 {[%emt 0:06:44] B12: Caro-Kann: Advance Variation.} 7. Be2 {[%emt 0:00:10]} Ne7 {[%emt 0:00:38]} 8. O-O {[%emt 0:00:08]} Nc8 {[%emt 0:06:32] White is slightly better.} 9. a4 {[%emt 0:01:35][%cal Ba2a4,Ba4a5][%mdl 32]} Be7 {[%emt 0:01:00]} 10. a5 {[%emt 0:00:15]} a6 {[%emt 0:00:37]} 11. Be3 {[%emt 0:07:09]} Qc7 {[%emt 0:07:33]} 12. Ne1 {[%emt 0:04:03]} Na7 {[%emt 0:04:26]} 13. Bd3 {[%emt 0:06:24]} Bxd3 {[%emt 0:05:03]} 14. Nxd3 {[%emt 0:00:07] [#]} O-O-O $146 {[%emt 0:01:24]} ({Predecessor:} 14... Nb5 15. f4 g6 16. Qc1 h5 17. h3 Qd8 18. Qe1 Rc8 19. g3 Kf8 20. Qe2 Kg7 {1-0 Balzert,A (2300)-Rodriguez Rey,J (2318) GER-ESP email 2017 [8]}) 15. Rc1 {[%emt 0:07:02]} g5 {[%emt 0:09:16]} 16. c4 {[%emt 0:02:15]} (16. f4 $16 {Black must now prevent fxg5.} f5 17. exf6 Bxf6 18. Ne5) 16... Kb8 {[%emt 0:08:24] White leaves nothing to chance now.} (16... dxc4 $11 17. Rxc4 Nb5) 17. cxd5 $16 {[%emt 0:02:05]} exd5 {[%emt 0:00:48]} 18. f4 {[%emt 0:00:30]} f5 {[%emt 0:10:56]} (18... Rh7 $16 19. f5 Re8) 19. fxg5 $18 {[%emt 0:02:12]} Bxg5 {[%emt 0:01:09]} (19... hxg5 $142 20. Rxf5 Rdf8 21. Rxf8+ Nxf8) 20. Bxg5 {[%emt 0:01:30]} hxg5 {[%emt 0:00:06]} 21. Rxf5 {[%emt 0:00:20][%cal Bf1f5,Bf5g5,Bg5g4][%mdl 32]} Nf8 {[%emt 0:00:20]} 22. Rxg5 {[%emt 0:10:36]} Ne6 {[%emt 0:01:10]} 23. Rg4 {[%emt 0:01:32]} Qh7 {[%emt 0:06:23]} 24. h3 {[%emt 0:00:06]} Nb5 {[%emt 0:00:19]} 25. Ndc5 {[%emt 0:07:58]} Nxc5 {[%emt 0:01:14]} 26. Nxc5 {[%emt 0:00:06]} Qh6 {[%emt 0:01:07]} 27. Rc2 {[%emt 0:06:53]} Ka8 {[%emt 0:05:39]} 28. Qd2 {[%emt 0:01:47]} Qh7 {[%emt 0:01:47]} 29. Qd3 {[%emt 0:00:47]} Qh6 {[%emt 0:01:17]} (29... Qxd3 $142 30. Nxd3 Rdg8 31. Rxg8+ Rxg8) 30. Qd2 {[%emt 0:03:55]} Qh7 $1 {[%emt 0:00:33]} 31. Qd3 {[%emt 0:00:16]} (31. Qc1 $142) 31... Qh6 $1 {[%emt 0:00:10]} 32. Qg3 {[%emt 0:01:00]} Qh7 {[%emt 0:02:01]} 33. Rf2 {[%emt 0:02:00]} Rdg8 {[%emt 0:02:43]} 34. Ne6 {[%emt 0:07:21] [#] Rxg8+ is the strong threat.} Rxg4 {[%emt 0:00:59]} 35. Qxg4 {[%emt 0:00:07]} Qd3 {[%emt 0:01:01]} (35... Kb8 $142 36. Kh2 Rc8) 36. Qg7 {[%emt 0:03:02]} Rb8 {[%emt 0:00:57]} 37. Rf8 {[%emt 0:01:49]} Qb1+ {[%emt 0:01:10]} 38. Kh2 {[%emt 0:00:05] [#] Nc5 would kill now.} Qxb2 {[%emt 0:00:06]} 39. Nc5 {[%emt 0:01:09][%csl Gc5][%cal Rg7b7] White mates.} Nxd4 {[%emt 0:01:49]} 40. Rxb8+ {[%emt 0:04:37]} Kxb8 {[%emt 0:00:18]} 41. Nd7+ {[%emt 0:30:49]} Ka7 {[%emt 0:30:45]} 42. Qh8 {[%emt 0:00:47] Weighted Error Value: White=0.51/Black=0.35} 1-0

[Event "Prague Open 2024"]
[Site "Prague"]
[Date "2024.01.10"]
[Round "7.7"]
[White "Neuman, Petr"]
[Black "Eropunov, Gleb"]
[Result "1/2-1/2"]
[ECO "B42"]
[WhiteElo "2398"]
[BlackElo "2052"]
[Annotator "RC"]
[PlyCount "64"]
[EventDate "2024.01.02"]
[EventType "swiss"]
[EventCountry "CZE"]
[SourceTitle "playchess.com"]
[Source "ChessBase"]
[SourceQuality "1"]
[TimeControl "40/5400+30:1800+30"]

1. e4 c5 2. Nf3 e6 3. d4 cxd4 4. Nxd4 a6 5. Bd3 Bc5 6. Nb3 Ba7 7. O-O Nc6 8. Qe2 d6 9. Be3 Bxe3 10. Qxe3 Nge7 11. f4 O-O 12. N1d2 Nb4 13. Nf3 b5 14. Rfc1 Nxd3 15. cxd3 Bd7 16. Qd4 Qb8 17. Na5 Ra7 18. Rc3 Rc8 19. Rac1 Rac7 20. b4 Ng6 21. Rxc7 Rxc7 22. Qe3 Qc8 23. Rxc7 Qxc7 24. Qd2 f6 25. d4 Ne7 26. a3 Bc8 27. Kf2 Bb7 28. Qa2 Bc8 29. Qb2 Bb7 30. Qb3 Bc8 31. Qb2 Bb7 32. Qb3 Bc8 1/2-1/2

[Event "Prague Open 2024"]
[Site "Prague"]
[Date "2024.01.10"]
[Round "7.8"]
[White "Wang, Yukun"]
[Black "Vojta, Jakub"]
[Result "1/2-1/2"]
[ECO "B15"]
[WhiteElo "2117"]
[BlackElo "2261"]
[Annotator "TA"]
[PlyCount "98"]
[EventDate "2024.01.02"]
[EventType "swiss"]
[EventCountry "CZE"]
[SourceTitle "playchess.com"]
[Source "ChessBase"]
[SourceQuality "1"]
[TimeControl "40/5400+30:1800+30"]

{[%evp 15,98,20,27,11,21,21,16,18,20,16,15,0,2,-23,-22,-40,-46,-51,-57,-64,-72,-75,-33,-39,-34,-28,-29,-13,-14,-52,-7,-79,-60,-88,-55,-66,-63,-54,-54,-53,-63,-51,-16,-37,0,-7,0,0,0,0,0,0,0,0,0,-29,29,-5,0,0,0,0,85,89,91,91,91,0,0,0,0,0,0,0,0,0,0,0,0,0,0,0,0,0,0]} 1. e4 c6 2. d4 d5 3. Nc3 dxe4 4. Nxe4 Nf6 5. Nxf6+ exf6 6. c3 Bd6 7. Bd3 O-O 8. Ne2 Re8 9. O-O {B15: Caro-Kann: 3 Nc3: 3...g6 and 3...dxe4 4 Nxe4 Nf6 5 Nxf6+ exf6.} Nd7 10. Bf4 Nf8 11. Qd2 Ng6 {[%cal Oe8e2]} 12. Bxd6 Qxd6 13. f4 f5 14. Ng3 Ne7 {[#]} 15. Rae1 $146 ({Predecessor:} 15. Bc4 b5 16. Bb3 Nd5 17. Bxd5 Qxd5 18. Rfe1 Be6 19. Re5 Qd7 20. a3 f6 21. Re2 {½-½ Vommaro,S (2083)-Lira,S (1858) Wch U14 Montesilvano 2023 (7)}) 15... Be6 16. Rf2 g6 17. b3 b5 18. Ne2 a5 19. c4 bxc4 20. bxc4 Reb8 21. Qc3 {[%cal Od4d5]} Qb4 22. Rc1 Nc8 23. a3 {[#]} (23. d5 $11 cxd5 24. c5) 23... Qxc3 $1 $17 24. Rxc3 {[%cal Od4d5]} Nd6 25. Nc1 Ne4 26. Bxe4 fxe4 27. Rd2 $1 a4 28. Kf2 Rb1 29. Ke3 $1 Bf5 30. Na2 Rc8 31. Nb4 c5 32. dxc5 Rxc5 33. Kd4 Rc8 34. Nd5 {[#] Ne7+ would be deadly.} Kf8 {Inhibits Ne7.} 35. c5 {[%cal Bc4c5,Bc5c6][%mdl 32]} Rb5 (35... Rb3 $142) 36. g3 Rd8 {And now ...Be6 would win.} 37. Ke3 Rb3 38. c6 $1 ({Reject} 38. Rxb3 axb3 39. Nc3 Rxd2 40. Kxd2 e3+ 41. Kxe3 b2 $17) 38... Rxc3+ (38... Rxd5 $2 39. Rxb3 Rc5 40. Rb6 $18) (38... Rd6 $11) 39. Nxc3 $11 {[%mdl 4096] Endgame KRB-KRN} Rc8 40. Rd6 $1 {[%cal Oc3d5] Nd5! is the strong threat. White is much more active.} ({Don't play} 40. Nxe4 $6 Rxc6 41. Rd8+ Kg7 $11) 40... Ke7 41. Nxe4 (41. Nb5 $16) 41... Bxe4 $16 {KRB-KR. The position is equal.} 42. Rd7+ Ke6 43. Kxe4 Rxc6 $11 {KR-KR} 44. Ra7 Rc2 45. Ra6+ Ke7 46. Rxa4 Rxh2 47. Ra7+ Kf6 48. a4 h5 49. Ra6+ Kg7 {Weighted Error Value: White=0.11 (very precise) /Black=0.11 (very precise)} 1/2-1/2

[Event "Prague Open 2024"]
[Site "Prague"]
[Date "2024.01.10"]
[Round "7.10"]
[White "Krstic, Andrija Marko"]
[Black "Xie, Felix"]
[Result "1/2-1/2"]
[ECO "D97"]
[WhiteElo "2113"]
[BlackElo "2249"]
[Annotator "RC"]
[PlyCount "85"]
[EventDate "2024.01.02"]
[EventType "swiss"]
[EventCountry "CZE"]
[SourceTitle "playchess.com"]
[Source "ChessBase"]
[SourceQuality "1"]
[TimeControl "40/5400+30:1800+30"]

1. d4 {[%emt 0:00:02]} Nf6 {[%emt 0:00:12]} 2. c4 {[%emt 0:00:06]} g6 {[%emt 0:00:04]} 3. Nc3 {[%emt 0:00:04]} d5 {[%emt 0:00:04]} 4. Nf3 {[%emt 0:00:04]} Bg7 {[%emt 0:00:04]} 5. Qb3 {[%emt 0:00:03]} dxc4 {[%emt 0:00:36]} 6. Qxc4 {[%emt 0:00:03]} Nc6 {[%emt 0:00:06]} 7. e4 {[%emt 0:00:33]} O-O {[%emt 0:00:14]} 8. Be2 {[%emt 0:00:39]} e5 {[%emt 0:00:04]} 9. d5 {[%emt 0:01:23]} Nd4 {[%emt 0:00:19]} 10. O-O {[%emt 0:02:10]} c6 {[%emt 0:12:37]} 11. dxc6 {[%emt 0:01:59]} Be6 {[%emt 0:00:28]} 12. Qd3 {[%emt 0:05:22]} Nxf3+ {[%emt 0:02:20]} 13. Qxf3 {[%emt 0:00:37]} bxc6 {[%emt 0:00:18]} 14. Bg5 {[%emt 0:04:28]} h6 {[%emt 0:01:53]} 15. Rfd1 {[%emt 0:04:09]} Qe7 {[%emt 0:00:30]} 16. Bh4 {[%emt 0:02:55]} g5 {[%emt 0:09:18]} 17. Bg3 {[%emt 0:00:05]} Nd7 {[%emt 0:00:13]} 18. Qd3 {[%emt 0:07:34]} Rfb8 {[%emt 0:13:04]} 19. b3 {[%emt 0:02:32]} Bf8 {[%emt 0:01:20]} 20. Na4 {[%emt 0:02:44]} f6 {[%emt 0:19:08]} 21. Rac1 {[%emt 0:01:09]} Rc8 {[%emt 0:00:05]} 22. f3 {[%emt 0:03:25]} Qa3 {[%emt 0:01:06]} 23. Qc2 {[%emt 0:05:42]} Nb6 {[%emt 0:03:56]} 24. Nc5 {[%emt 0:11:27]} Bf7 {[%emt 0:03:18]} 25. Bf2 {[%emt 0:00:48]} Rd8 {[%emt 0:01:28]} 26. Nb7 {[%emt 0:02:27]} Rxd1+ {[%emt 0:10:31]} 27. Rxd1 {[%emt 0:00:07]} Rc8 {[%emt 0:00:40]} 28. Rd8 {[%emt 0:09:54]} Rxd8 {[%emt 0:06:05]} 29. Nxd8 {[%emt 0:00:06]} Be8 {[%emt 0:02:00]} 30. Ne6 {[%emt 0:10:55]} Be7 {[%emt 0:01:07]} 31. Nc5 {[%emt 0:07:21]} Bf7 {[%emt 0:03:08]} 32. Be3 {[%emt 0:03:30]} Kg7 {[%emt 0:01:41]} 33. Kf2 {[%emt 0:00:26]} Nc4 {[%emt 0:04:42]} 34. Bxc4 {[%emt 0:01:51]} Bxc5 {[%emt 0:00:05]} 35. Bxf7 {[%emt 0:00:16]} Bxe3+ {[%emt 0:00:04]} 36. Kxe3 {[%emt 0:00:08]} Kxf7 {[%emt 0:00:02]} 37. Qxc6 {[%emt 0:02:36]} Qxa2 {[%emt 0:00:15]} 38. Qd7+ {[%emt 0:00:10]} Kg6 {[%emt 0:00:36]} 39. Qe8+ {[%emt 0:00:07]} Kg7 {[%emt 0:00:04]} 40. Qe7+ {[%emt 0:00:06]} Kg6 {[%emt 0:00:05]} 41. Qe8+ {[%emt 0:30:57]} Kg7 {[%emt 0:30:04]} 42. Qe7+ {[%emt 0:00:05]} Kg6 {[%emt 0:00:06]} 43. Qe8+ {[%emt 0:00:05]} 1/2-1/2

[Event "Prague Open 2024"]
[Site "Prague"]
[Date "2024.01.10"]
[Round "7.11"]
[White "Tolmacevs, Artjoms"]
[Black "Eliseev, Sergey"]
[Result "0-1"]
[ECO "B51"]
[WhiteElo "1928"]
[BlackElo "2232"]
[Annotator "TA"]
[PlyCount "54"]
[EventDate "2024.01.02"]
[EventType "swiss"]
[EventCountry "CZE"]
[SourceTitle "playchess.com"]
[Source "ChessBase"]
[SourceQuality "1"]
[TimeControl "40/5400+30:1800+30"]

{[%evp 9,54,13,8,4,37,23,67,61,57,14,22,0,0,-79,-60,-68,-65,-103,-95,-160,-158,-216,-207,-373,-404,-380,-374,-406,-320,-395,-387,-379,-326,-391,-316,-427,-325,-346,-345,-500,-462,-425,-368,-387,-387,-458,-379]} 1. e4 {[%emt 0:00:06]} c5 {[%emt 0:05:13]} 2. Nf3 {[%emt 0:00:07]} d6 {[%emt 0:00:08]} 3. Bb5+ {[%emt 0:00:06]} Nd7 {[%emt 0:00:47]} 4. Ba4 {[%emt 0:00:07]} Ngf6 {[%emt 0:01:01]} 5. O-O {[%emt 0:00:08]} a6 {[%emt 0:12:16][%cal Ob7b5]} 6. c4 {[%emt 0:00:42] B51: Sicilian: Moscow Variation (3 Bb5+) without 3...Bd7.} e5 {[%emt 0:02:40] 6...e6 is a critical line.} ({Don't take} 6... b5 7. cxb5 Nb6 8. bxa6+ Nxa4 9. Qxa4+ Qd7 10. Qxd7+ Kxd7 11. Nc3 $14) 7. Nc3 {[%emt 0:04:46]} g6 {[%emt 0:00:29]} 8. d3 {[%emt 0:02:27] White is slightly better.} Bg7 {[%emt 0:00:17]} 9. Ne1 {[%emt 0:03:19] [#]} Nh5 $146 {[%emt 0:07:17]} ({Predecessor:} 9... O-O 10. f4 Nb6 11. fxe5 Ng4 12. h3 Nxe5 13. Bb3 Be6 14. Nd5 Bxd5 15. cxd5 Nbd7 {½-½ Sredojevic,I (2251)-Eric,J (2228) SRB-ch sf Novi Banovci 2023 (5)}) 10. Nd5 {[%emt 0:03:08][%cal Oc1g5]} O-O {[%emt 0:00:30]} 11. f4 {[%emt 0:03:36]} (11. Bxd7 $11 Bxd7 12. b3) 11... Nxf4 $17 {[%emt 0:01:52]} 12. Nxf4 {[%emt 0:12:50]} exf4 {[%emt 0:00:34]} 13. Bxd7 {[%emt 0:02:37] White is on the road to losing.} Qxd7 {[%emt 0:03:08]} 14. Rxf4 {[%emt 0:00:25]} ({White should try} 14. Bxf4 b5 15. Qc2) 14... b5 {[%emt 0:04:41]} 15. Nf3 {[%emt 0:18:07]} (15. Qb3 $17) 15... Qe7 {[%emt 0:12:50] Hoping for ...g5.} 16. Qc2 $2 {[%emt 0:08:35] [#]} (16. Nd2) 16... g5 $19 {[%emt 0:03:52]} 17. Nxg5 {[%emt 0:04:59]} Qxg5 {[%emt 0:00:36]} 18. Rf3 {[%emt 0:00:53]} Qe7 {[%emt 0:08:08]} ({Not} 18... Bd4+ $2 19. Kh1 Qh5 20. Bf4 $19) 19. Bf4 {[%emt 0:02:15]} Kh8 {[%emt 0:01:54]} 20. Raf1 {[%emt 0:00:26]} Be6 {[%emt 0:00:57]} 21. Qd2 {[%emt 0:01:09]} Rg8 {[%emt 0:00:51]} 22. Kh1 {[%emt 0:00:30]} Be5 {[%emt 0:00:35]} 23. Bxe5+ {[%emt 0:00:38]} dxe5 {[%emt 0:00:01]} 24. Rf6 {[%emt 0:00:01]} (24. Qc3 {was necessary.} Qg5 25. Rg3) 24... Rg6 {[%emt 0:01:46]} 25. Rxg6 {[%emt 0:00:12]} fxg6 {[%emt 0:00:40]} 26. Qc3 {[%emt 0:00:15]} Qd6 {[%emt 0:00:37]} 27. h3 {[%emt 0:00:23]} Kg7 {[%emt 0:01:03] Weighted Error Value: White=0.51/Black=0.29 (precise)} 0-1

[Event "Prague Open 2024"]
[Site "Prague"]
[Date "2024.01.10"]
[Round "7.12"]
[White "Rakovsky, Jakub"]
[Black "Platonovs, Nikolajs"]
[Result "1-0"]
[ECO "B90"]
[WhiteElo "2157"]
[BlackElo "1852"]
[Annotator "TA"]
[PlyCount "51"]
[EventDate "2024.01.02"]
[EventType "swiss"]
[EventCountry "CZE"]
[SourceTitle "playchess.com"]
[Source "ChessBase"]
[SourceQuality "1"]
[TimeControl "40/5400+30:1800+30"]

{[%evp 15,51,5,12,10,19,10,14,6,17,27,31,26,220,190,267,227,229,237,309,99,187,121,143,165,131,101,104,41,181,195,236,242,237,237,29991,29992,29997,29998]} 1. e4 {[%emt 0:00:27]} c5 {[%emt 0:00:02]} 2. Nf3 {[%emt 0:00:41]} d6 {[%emt 0:00:05]} 3. d4 {[%emt 0:00:42]} cxd4 {[%emt 0:00:04]} 4. Nxd4 {[%emt 0:00:10]} Nf6 {[%emt 0:00:03]} 5. Nc3 {[%emt 0:00:20]} a6 {[%emt 0:00:03]} 6. Bd3 {[%emt 0:01:00]} e5 {[%emt 0:00:23]} 7. Nde2 {[%emt 0:00:18]} Be7 {[%emt 0:00:38]} 8. O-O {[%emt 0:00:32]} O-O {[%emt 0:00:55]} 9. Ng3 {[%emt 0:00:05] B90: Sicilian Najdorf: Unusual White 6th moves, 6 Be3 Ng4 and 6 Be3 e5.} Be6 {[%emt 0:01:39] [#]} 10. Nd5 $1 {[%emt 0:02:15]} Nxd5 {[%emt 0:05:49]} 11. exd5 {[%emt 0:00:11] The position is equal.} Bc8 {[%emt 0:04:42]} 12. f4 {[%emt 0:21:47]} exf4 {[%emt 0:04:02]} 13. Bxf4 {[%emt 0:02:47] [#]} Re8 $146 {[%emt 0:07:05]} (13... Qb6+ 14. Kh1 $16) (13... Nd7 $11) ({Predecessor:} 13... Nd7 14. Nf5 Ne5 15. Nxe7+ Qxe7 16. Qd2 b5 17. b3 Bg4 18. Bxe5 dxe5 19. h3 Bh5 {½-½ Evans,D (2409)-Ellis,L (2363) BCCA/BL/Ch19 2019 [8]}) 14. Nh5 {[%emt 0:11:47][%cal Oh5g7] Threatens to win with Nxg7!} (14. Qh5 g6 15. Qf3 Nd7 $14) 14... g6 {[%emt 0:09:28] [#]} (14... Qb6+ $2 15. Kh1 g6 16. Qf3 $18 (16. Re1 Nd7 $14)) (14... f5 $142) 15. Qf3 $1 $18 {[%emt 0:25:54]} f5 {[%emt 0:07:02] [#]} (15... Nd7 16. Bxd6) 16. Rae1 $1 {[%emt 0:13:37]} Rf8 {[%emt 0:11:18]} (16... Nd7 17. Bxf5) 17. Bh6 $2 {[%emt 0:02:53]} (17. Rxe7 $18 {[%cal Of3e3] and White stays clearly on top. Qe3! would kill now.} Qxe7 18. Qg3) 17... Rf7 {[%emt 0:02:09] [#]} (17... Nd7 $16) 18. Nf4 {[%emt 0:01:19]} ({White should try} 18. Qe3 $1 $18 Nd7 19. Bxf5) 18... Qb6+ {[%emt 0:06:25]} 19. Kh1 {[%emt 0:01:42] Active counter play!} Nd7 {[%emt 0:01:12]} 20. Qg3 {[%emt 0:04:22][%cal Of4g6] Threatening mate with Nxg6!} ({Don't go for} 20. Bxf5 $2 Ne5 21. Bxg6 Nxf3 $19) 20... Ne5 {[%emt 0:04:23]} 21. Ne6 {[%emt 0:00:14]} (21. h4 $16) 21... Ng4 {[%emt 0:15:42] [#]} (21... Qxb2 $14 22. Bxf5 Bd7) 22. Bxf5 $1 {[%emt 0:06:47][%cal Bd3f5,Bf5g6,Bg6f7][%mdl 608] Remove Defender} Nxh6 {[%emt 0:00:41] [#]} (22... Rxf5 23. Qxg4) 23. Bxg6 $40 {[%emt 0:00:30][%mdl 640] White attacks with force.} Rxf1+ {[%emt 0:00:06]} 24. Rxf1 {[%emt 0:00:07] White wants to mate with Bf7+.} Bxe6 {[%emt 0:00:13]} (24... hxg6 $2 {is a self mate.} 25. Qxg6+ Kh8 26. Qg7#) (24... Qxb2 $18 25. Bxh7+ {[%mdl 64] Decoy} Kxh7 26. Qd3+ Kh8) 25. Bf7+ {[%emt 0:00:30]} Kh8 {[%emt 0:00:11]} 26. Qc3+ {[%emt 0:00:23] A cool game by Rakovsky.   Weighted Error Value: White=0.28 (precise) /Black=0.68} 1-0

[Event "Prague Open 2024"]
[Site "Prague"]
[Date "2024.01.10"]
[Round "7.13"]
[White "Arndt, Stefan"]
[Black "Khandhar, Kaushal"]
[Result "0-1"]
[ECO "D02"]
[WhiteElo "2130"]
[BlackElo "1840"]
[Annotator "TA"]
[PlyCount "82"]
[EventDate "2024.01.02"]
[EventType "swiss"]
[EventCountry "CZE"]
[SourceTitle "playchess.com"]
[Source "ChessBase"]
[SourceQuality "1"]
[TimeControl "40/5400+30:1800+30"]

{[%evp 20,82,0,0,14,0,0,0,29,22,27,22,30,22,50,0,2,0,-6,-15,-15,-83,-73,-110,-85,-357,-328,-347,-256,-456,-235,-228,-226,-486,-475,-608,-566,-560,-582,-1461,-1449,-1410,-1380,-5755,-2291,-2236,-2110,-2025,-1926,-1975,-1037,-1359,-943,-937,-939,-935,-920,-912,-894,-567,-912,-1129,-1116,-1158,-1158]} 1. d4 {[%emt 0:00:05]} d5 {[%emt 0:01:20]} 2. Nf3 {[%emt 0:00:08]} Nf6 {[%emt 0:00:12]} 3. c4 {[%emt 0:00:06]} e6 {[%emt 0:00:57]} 4. e3 {[%emt 0:00:14]} Be7 {[%emt 0:00:37]} 5. b3 {[%emt 0:00:09]} O-O {[%emt 0:00:28]} 6. Bd3 {[%emt 0:00:12]} dxc4 {[%emt 0:05:22]} 7. bxc4 {[%emt 0:02:07]} c5 {[%emt 0:00:25]} 8. O-O {[%emt 0:00:10]} Nc6 {[%emt 0:03:19]} 9. Bb2 {[%emt 0:03:42]} b6 {[%emt 0:04:09]} 10. Nbd2 {[%emt 0:00:54][%cal Bb1d2,Bd2f1,Bf1e3,Be3f5][%mdl 32]} Bb7 {[%emt 0:01:21]} 11. Rc1 {[%emt 0:00:50]} Qd7 {[%emt 0:07:03] [#] E14: Queen's Indian: Classical Variation (4 e3).} 12. Qe2 $146 {[%emt 0:01:06]} ({Predecessor:} 12. Bb1 Rfd8 13. a3 Rab8 14. Qc2 g6 15. Rfd1 Qc7 16. Qc3 Ne8 17. Ne4 Bf8 18. dxc5 Bg7 19. Qc2 Bxb2 20. Qxb2 {0-1 Plock,J-Rudnicki,M Tierpark op 2nd 1998}) 12... Rfd8 {[%emt 0:07:46]} 13. Rfd1 {[%emt 0:01:04]} cxd4 {[%emt 0:07:20] The position is equal.} 14. exd4 {[%emt 0:00:08]} Rac8 {[%emt 0:00:17]} 15. Nf1 {[%emt 0:02:16]} Qe8 {[%emt 0:04:11]} 16. Ne3 {[%emt 0:05:06]} Qf8 {[%emt 0:05:15]} 17. Bb1 {[%emt 0:32:45]} (17. d5 $1 $14 Nb4 18. Bb1) 17... Na5 $11 {[%emt 0:09:05] [#]} 18. d5 $1 {[%emt 0:03:31][%mdl 64] Deflection} exd5 {[%emt 0:08:21]} 19. Nf5 {[%emt 0:00:30]} (19. Bf5 {simplifies} Rc6 20. Nxd5 Nxd5 21. cxd5 Rxd5 22. Bxh7+ Kxh7 23. Rxd5 Rxc1+ 24. Bxc1 Bxd5 25. Qd3+) 19... Re8 {[%emt 0:00:19][%cal Ra5c4]} (19... Nxc4 $2 20. Nxe7+ Kh8 21. Bxf6 gxf6 22. Qd3 $18) 20. Qc2 {[%emt 0:06:59]} (20. Qd3 $11 {keeps the balance.} dxc4 21. Qc3) 20... Rxc4 $17 {[%emt 0:06:04]} 21. Qd3 {[%emt 0:00:10] [#]} g6 $1 {[%emt 0:09:49]} 22. Ne5 $2 {[%emt 0:05:37][%mdl 8192] This move loses the game for White.} (22. Nxe7+ $17 {is a better defense.} Qxe7 23. Qd2) 22... gxf5 $19 {[%emt 0:05:00]} 23. Qxf5 {[%emt 0:01:02] aiming for Rxc4.} Bc8 {[%emt 0:00:23]} 24. Qf3 {[%emt 0:02:48] [#]} (24. Qg5+ {was forced.} Qg7 25. Qxg7+ Kxg7 26. Nxc4 Nxc4 27. Bxf6+ Kxf6 28. Rxd5) 24... Qg7 {[%emt 0:02:38]} 25. Nxc4 {[%emt 0:00:43]} Nxc4 {[%emt 0:00:27]} ({Weaker is} 25... dxc4 26. Re1 Be6 27. Bf5 $14) 26. Rxc4 {[%emt 0:00:43]} (26. Bxf6 {was the only defense.} Bxf6 27. Qxd5) 26... dxc4 {[%emt 0:00:25] Black is clearly winning.} 27. Qc6 {[%emt 0:02:44][%cal Ob2f6]} Kf8 {[%emt 0:00:59]} 28. Re1 {[%emt 0:01:23]} Be6 {[%emt 0:00:49]} 29. Re5 {[%emt 0:02:04]} Rd8 {[%emt 0:03:35]} 30. Bc2 {[%emt 0:03:20] Dodges Rd1+} Ng4 {[%emt 0:03:26][%cal Bf6g4,Bg4f2,Bf2d3][%mdl 32]} 31. Rb5 {[%emt 0:04:04]} Qh6 {[%emt 0:00:44] ( -> ...Qd2)} 32. h3 {[%emt 0:02:06] [#]} Nxf2 $1 {[%emt 0:02:29]} 33. Qf3 {[%emt 0:00:34]} Nd3 {[%emt 0:00:54]} 34. Rh5 {[%emt 0:01:23]} Bc5+ {[%emt 0:00:51]} 35. Kh1 {[%emt 0:01:56]} Qe3 {[%emt 0:00:34]} 36. Qxe3 {[%emt 0:01:41]} Bxe3 {[%emt 0:00:15]} 37. Bf6 {[%emt 0:00:22]} Rd5 {[%emt 0:00:50]} 38. Rxh7 {[%emt 0:00:13]} Ke8 {[%emt 0:00:18] Strongly threatening ...Rf5.} 39. Rh8+ {[%emt 0:01:19]} Kd7 {[%emt 0:00:04] White must now prevent ...Rf5.} 40. Ra8 {[%emt 0:00:23]} b5 {[%emt 0:00:35]} 41. Kh2 {[%emt 0:30:44]} Bb6 {[%emt 0:31:02] Weighted Error Value: White=1.02/Black=0.48} 0-1